bitfinex-derivatives/quotes_ETHF0:USTF0_20230402
["timestamp","ask_amount","ask_price","bid_price","bid_amount"]
[1680450088555,0.662,1795.2,1795.0,1.16680701]
[1680450088758,0.662,1795.2,1795.1,0.87424568]
[1680450088949,0.662,1795.2,1795.0,0.87424568]
[1680450089550,3.8698,1795.2,1795.0,0.87424568]
[1680450090557,3.8698,1795.2,1795.1,0.87424568]
[1680450090753,3.8698,1795.2,1795.0,0.87424568]
[1680450095167,3.8698,1795.2,1794.9,0.87424568]
[1680450095361,3.8698,1795.2,1795.0,0.87424568]
[1680450095666,3.8698,1795.2,1794.9,0.87424568]
[1680450098369,0.00387804,1795.1,1795.0,0.668]
[1680450098667,1.6,1795.3,1795.1,1.0]
[1680450099880,1.6,1795.3,1795.0,1.54224568]
[1680450100183,5.4758,1795.3,1794.9,4.08204568]
[1680450102183,4.8078,1795.3,1794.9,4.74904568]
[1680450102381,4.8078,1795.3,1795.0,1.0]
[1680450102582,1.6,1795.3,1795.0,1.87424568]
[1680450103178,1.6,1795.3,1795.1,3.2078]
[1680450103373,1.6,1795.3,1795.0,1.87424568]
[1680450103576,1.6,1795.3,1794.9,5.74904568]
[1680450105282,1.6,1795.3,1794.9,1.54124568]
[1680450105784,3.2078,1795.2,1794.9,1.54124568]
[1680450106676,0.668,1795.1,1794.8,0.87424568]
[1680450108276,0.668,1795.1,1794.8,1.87424568]
[1680450108582,0.668,1795.1,1794.8,0.87424568]
[1680450108774,0.668,1795.1,1794.8,1.87424568]
[1680450109171,2.268,1795.3,1794.9,5.08204568]
[1680450110778,1.6,1795.3,1795.0,0.663]
[1680450111286,5.4758,1795.3,1794.9,1.87424568]
[1680450111483,5.4758,1795.3,1794.9,0.87424568]
[1680450113481,0.00310226,1795.2,1794.9,0.87424568]
[1680450116183,0.668,1795.1,1794.9,0.87424568]
[1680450116484,0.00310226,1795.2,1794.9,0.87424568]
[1680450116784,0.00310226,1795.2,1795.0,1.0]
[1680450117090,0.00310226,1795.2,1795.0,1.666]
[1680450117789,0.00310226,1795.2,1795.0,2.54024568]
[1680450118181,0.00310226,1795.2,1795.0,1.87424568]
[1680450119976,0.00310226,1795.2,1795.1,0.87424568]
[1680450125391,0.00310226,1795.2,1795.1,2.16680701]
[1680450125587,0.00310226,1795.2,1795.1,5.37460701]
[1680450126800,0.00310226,1795.2,1795.1,6.33230877]
[1680450127189,1.6,1795.4,1795.1,6.33230877]
[1680450127493,1.6,1795.4,1795.3,1.8755529]
[1680450127694,1.6,1795.4,1795.3,0.8755529]
[1680450127993,1.6,1795.4,1795.3,0.87584473]
[1680450128196,1.6,1795.4,1795.2,2.16740387]
[1680450128587,0.00232656,1795.3,1795.2,2.16740387]
[1680450128995,1.6,1795.4,1795.2,2.16740387]
[1680450129591,1.6,1795.4,1795.3,2.16740387]
[1680450129989,0.57208813,1795.6,1795.3,1.0]
[1680450130190,0.57208813,1795.6,1795.5,0.87601293]
[1680450130399,5.300361,1795.7,1795.5,0.87601293]
[1680450130593,6.04188813,1795.7,1795.5,0.87601293]
[1680450132196,5.37988813,1795.7,1795.5,0.87601293]
[1680450134894,4.8078,1795.7,1795.5,0.87601293]
[1680450135500,3.2078,1795.7,1795.5,0.87601293]
[1680450135696,3.2078,1795.7,1795.6,1.87601293]
[1680450135894,3.20221298,1795.7,1795.6,1.0]
[1680450136094,4.80221298,1795.7,1795.6,1.87601293]
[1680450136598,0.56358411,1795.9,1795.6,2.16801724]
[1680450136794,0.57208813,1796.1,1795.7,4.74876837]
[1680450136999,0.57208813,1796.1,1795.7,4.81210681]
[1680450137304,0.57208813,1796.1,1795.8,1.0]
[1680450137902,5.304361,1796.2,1795.8,1.0]
[1680450138296,0.57208813,1796.2,1796.0,0.668]
[1680450138604,0.57208813,1796.3,1796.0,0.668]
[1680450138999,6.78412444,1796.4,1796.0,0.668]
[1680450139502,6.78412444,1796.4,1796.0,1.668]
[1680450139901,5.35356344,1796.4,1796.0,1.668]
[1680450140303,0.54576344,1796.4,1796.2,0.662]
[1680450140504,4.44588813,1796.6,1796.3,1.0]
[1680450140995,4.44588813,1796.6,1796.2,1.662]
[1680450141199,3.8738,1796.6,1796.2,1.662]
[1680450141804,4.4302408,1796.6,1796.2,1.662]
[1680450142205,3.7642408,1796.6,1796.2,1.666]
[1680450142702,4.4322408,1796.6,1796.1,3.8738]
[1680450143308,4.4322408,1796.6,1796.2,0.20784097]
[1680450146413,1.6,1796.5,1796.2,0.20784097]
[1680450148616,2.6,1796.5,1796.2,0.20784097]
[1680450149618,0.662,1796.3,1796.2,0.20784097]
[1680450150020,0.662,1796.3,1795.9,3.8758]
[1680450150615,0.662,1796.3,1795.9,0.668]
[1680450150811,0.662,1796.3,1795.9,3.8758]
[1680450151516,0.662,1796.3,1795.9,0.668]
[1680450151718,1.662,1796.3,1795.9,0.668]
[1680450151923,2.268,1796.2,1795.7,3.8728]
[1680450152225,2.268,1796.2,1795.6,0.55468522]
[1680450152226,0.664,1796.0,1795.6,0.55468522]
[1680450152419,0.664,1796.0,1795.5,2.31790577]
[1680450152725,3.8718,1796.0,1795.5,2.31790577]
[1680450153315,3.8718,1796.0,1795.5,5.52570577]
[1680450155819,3.8718,1796.0,1795.5,2.31790577]
[1680450156028,4.42905141,1796.0,1795.5,2.31790577]
[1680450157329,1.6,1795.9,1795.5,2.31790577]
[1680450158224,1.6,1795.9,1795.6,0.13344552]
[1680450158524,1.6,1795.9,1795.6,1.13344552]
[1680450158723,1.6,1795.9,1795.6,0.13344552]
[1680450161631,1.6,1795.9,1795.7,0.665]
[1680450162130,1.6,1795.9,1795.8,0.668]
[1680450162333,1.6,1795.9,1795.8,1.668]
[1680450162835,1.6,1795.9,1795.7,3.2078]
[1680450163042,0.666,1796.1,1795.7,3.2078]
[1680450163429,1.5,1796.0,1795.7,3.2078]
[1680450163635,1.5,1796.0,1795.8,0.667]
[1680450163835,1.5,1796.0,1795.8,1.667]
[1680450164035,1.5,1796.0,1795.8,0.667]
[1680450166131,1.5,1796.0,1795.6,2.36636758]
[1680450167134,1.5,1796.0,1795.6,1.36636758]
[1680450168636,3.8718,1795.9,1795.6,0.13344552]
[1680450169032,3.8718,1795.9,1795.5,3.2078]
[1680450169233,3.8718,1795.9,1795.4,1.53996837]
[1680450169835,3.2078,1795.9,1795.6,0.665]
[1680450171040,1.5,1795.8,1795.6,0.665]
[1680450173446,1.5,1795.8,1795.7,0.03710463]
[1680450173642,1.5,1795.8,1795.6,0.665]
[1680450177746,3.2078,1795.9,1795.6,0.665]
[1680450178143,4.7078,1795.9,1795.6,0.665]
[1680450179348,3.2078,1795.7,1795.6,0.665]
[1680450179646,3.8758,1795.7,1795.3,0.87496837]
[1680450179837,3.2078,1795.5,1795.2,1.54296837]
[1680450180551,3.2078,1795.5,1795.2,0.668]
[1680450190648,3.2078,1795.3,1795.2,0.668]
[1680450190849,3.2078,1795.3,1795.0,0.87496837]
[1680450191155,3.21012656,1795.3,1795.0,0.87496837]
[1680450191555,3.21012656,1795.3,1795.0,1.87496837]
[1680450192247,3.21012656,1795.3,1795.1,0.668]
[1680450192751,0.00232656,1795.3,1795.2,1.668]
[1680450192942,0.56176439,1795.6,1795.2,1.668]
[1680450193143,3.2078,1795.5,1795.2,1.668]
[1680450194051,0.668,1795.7,1795.2,2.54296837]
[1680450194453,0.668,1795.7,1795.3,3.2078]
[1680450194651,0.668,1795.7,1795.4,1.0]
[1680450195145,3.2078,1795.8,1795.4,1.666]
[1680450196058,3.2078,1795.8,1795.4,0.666]
[1680450196353,3.2078,1795.8,1795.4,1.666]
[1680450200856,0.668,1795.9,1795.5,1.0]
[1680450201159,0.668,1795.9,1795.5,4.2078]
[1680450202160,5.306361,1796.0,1795.5,4.8758]
[1680450202355,5.306361,1796.0,1795.5,3.8758]
[1680450202556,0.57208813,1795.9,1795.5,0.668]
[1680450202755,4.8738,1795.8,1795.4,0.87496837]
[1680450203165,3.8738,1795.8,1795.3,1.53696837]
[1680450203556,3.8738,1795.8,1795.3,4.74476837]
[1680450203759,3.8738,1795.8,1795.3,1.53696837]
[1680450206563,3.2078,1795.6,1795.3,1.53696837]
[1680450210768,3.2078,1795.6,1795.4,0.87496837]
[1680450218969,0.66419001,1795.5,1795.3,0.87496837]
[1680450219170,3.2078,1795.4,1795.3,0.87496837]
[1680450224780,3.77988813,1795.6,1795.3,0.87496837]
[1680450224978,3.77988813,1795.6,1795.4,0.87496837]
[1680450228579,3.2078,1795.6,1795.4,0.87496837]
[1680450229485,1.430561,1795.7,1795.5,0.87496837]
[1680450229674,0.57208813,1795.8,1795.6,0.668]
[1680450229879,1.430561,1795.9,1795.6,2.54296837]
[1680450230081,0.57208813,1795.9,1795.7,1.00196738]
[1680450230283,0.57208813,1796.0,1795.7,4.20976738]
[1680450230778,0.57208813,1796.0,1795.8,1.0]
[1680450230984,1.430561,1796.0,1795.8,1.0]
[1680450231186,0.57208813,1796.0,1795.8,1.0]
[1680450231386,1.430561,1796.0,1795.8,1.0]
[1680450231589,0.57208813,1796.0,1795.7,2.00196738]
[1680450231784,1.430561,1796.0,1795.7,2.00196738]
[1680450231985,0.57208813,1796.0,1795.7,2.00196738]
[1680450232185,0.57208813,1796.0,1795.7,2.66996738]
[1680450232886,0.57208813,1795.9,1795.7,0.79499901]
[1680450234287,4.638361,1796.0,1795.7,0.79499901]
[1680450234485,0.57208813,1795.9,1795.7,0.79499901]
[1680450234691,4.638361,1796.0,1795.7,0.79499901]
[1680450234891,0.57208813,1795.9,1795.7,0.79499901]
[1680450235088,0.57208813,1795.9,1795.7,0.668]
[1680450235389,4.638361,1796.0,1795.7,0.668]
[1680450235585,4.638361,1796.0,1795.8,0.05948728]
[1680450237994,1.52347287,1795.9,1795.8,0.05948728]
[1680450238192,3.09536833,1795.9,1795.8,0.05948728]
[1680450238494,2.52347287,1795.9,1795.5,0.87496837]
[1680450238695,3.2078,1795.7,1795.5,0.87496837]
[1680450243901,3.2078,1795.7,1795.5,1.87496837]
[1680450244304,3.2078,1795.7,1795.5,0.87496837]
[1680450246303,3.2078,1795.7,1795.6,1.662]
[1680450248200,3.77968724,1795.9,1795.6,1.662]
[1680450249207,3.77968724,1795.9,1795.6,0.662]
[1680450252099,3.77968724,1795.9,1795.6,1.53696837]
[1680450252403,3.77968724,1795.9,1795.7,1.0]
[1680450257101,3.77968724,1795.9,1795.6,1.53696837]
[1680450258210,3.77968724,1795.9,1795.7,1.0]
[1680450258410,0.57188724,1796.0,1795.7,1.87496837]
[1680450258607,0.57188724,1796.0,1795.8,0.10772674]
[1680450262816,0.57188724,1796.0,1795.6,5.74476837]
[1680450263410,0.57188724,1796.0,1795.7,0.10654163]
[1680450263712,0.57188724,1796.0,1795.7,1.0]
[1680450263909,3.8698,1795.9,1795.6,0.87496837]
[1680450264614,4.44168724,1795.9,1795.6,0.87496837]
[1680450265016,4.44168724,1795.9,1795.5,0.87496837]
[1680450265017,3.2078,1795.7,1795.5,0.87496837]
[1680450269924,3.2078,1795.7,1795.6,0.87496837]
[1680450270117,3.2078,1795.7,1795.5,0.87496837]
[1680450272025,3.2078,1795.7,1795.6,0.87496837]
[1680450274223,0.57188724,1795.8,1795.6,0.87496837]
[1680450274419,0.57188724,1795.8,1795.7,0.87595516]
[1680450277526,0.57188724,1795.8,1795.7,1.54395516]
[1680450278413,0.57188724,1795.9,1795.7,2.94298069]
[1680450278625,0.57188724,1795.9,1795.8,0.87596119]
[1680450278929,1.43036011,1796.0,1795.8,0.87596119]
[1680450279223,0.57188724,1795.9,1795.8,0.87596119]
[1680450279626,1.43036011,1796.0,1795.8,0.87596119]
[1680450279822,0.57188724,1795.9,1795.8,0.87596119]
[1680450280024,1.43036011,1796.0,1795.8,0.87596119]
[1680450280225,0.57188724,1796.0,1795.8,0.87596119]
[1680450281426,1.43036011,1796.0,1795.8,0.87596119]
[1680450282328,0.57188724,1796.0,1795.8,0.87596119]
[1680450284628,1.43036011,1796.0,1795.8,0.87596119]
[1680450284930,0.57188724,1796.0,1795.8,0.87596119]
[1680450285426,3.77968724,1796.0,1795.8,0.87596119]
[1680450286133,4.63816011,1796.0,1795.8,0.87596119]
[1680450286333,3.77968724,1796.0,1795.8,0.87596119]
[1680450288430,0.665,1795.9,1795.7,0.98292464]
[1680450288730,3.09536011,1795.9,1795.7,0.10696345]
[1680450288931,3.77968724,1795.8,1795.7,0.10696345]
[1680450289122,3.77968724,1795.8,1795.6,0.87596119]
[1680450289531,4.77968724,1795.8,1795.6,0.87596119]
[1680450290028,3.77968724,1795.8,1795.6,0.87596119]
[1680450293437,3.77968724,1795.8,1795.7,0.10665977]
[1680450293641,3.77968724,1795.8,1795.6,0.87596119]
[1680450298044,3.77281817,1795.8,1795.6,0.87596119]
[1680450299143,1.665,1795.7,1795.6,0.87596119]
[1680450299332,1.665,1795.7,1795.5,0.87596119]
[1680450299637,4.8728,1795.6,1795.5,0.87596119]
[1680450300137,3.8728,1795.6,1795.5,0.87596119]
[1680450301043,3.8728,1795.6,1795.4,0.87596119]
[1680450304241,4.42903071,1795.6,1795.3,0.87596119]
[1680450304439,3.2078,1795.4,1795.3,0.87596119]
[1680450310139,3.2078,1795.4,1795.2,0.87596119]
[1680450310538,1.67032656,1795.3,1795.1,0.87596119]
[1680450310741,4.5368,1795.2,1795.1,0.87596119]
[1680450310944,4.5368,1795.2,1795.0,0.87596119]
[1680450311143,0.665,1795.1,1794.9,0.87596119]
[1680450311345,3.8708,1795.0,1794.9,0.87596119]
[1680450312141,3.2078,1795.0,1794.9,0.87596119]
[1680450314249,3.8758,1795.0,1794.8,0.87596119]
[1680450314452,0.663,1794.9,1794.8,0.87596119]
[1680450314640,0.663,1794.9,1794.7,1.87596119]
[1680450314952,0.663,1794.9,1794.8,0.87596119]
[1680450315953,0.663,1794.9,1794.7,0.87596119]
[1680450316148,3.2078,1794.8,1794.7,0.87596119]
[1680450316841,3.8758,1794.8,1794.7,0.87596119]
[1680450317045,4.5438,1794.8,1794.4,0.87596119]
[1680450317246,0.668,1794.5,1794.4,0.87596119]
[1680450317547,1.0,1794.7,1794.4,0.87596119]
[1680450317548,0.665,1794.7,1794.4,1.87596119]
[1680450317753,0.668,1794.9,1794.5,0.87596119]
[1680450317950,3.8758,1794.9,1794.5,0.87596119]
[1680450318549,3.8758,1794.9,1794.4,2.54396119]
[1680450318752,3.2078,1794.7,1794.4,2.54396119]
[1680450318953,3.2078,1794.7,1794.4,1.54396119]
[1680450319753,3.8758,1794.7,1794.4,0.87596119]
[1680450320155,3.8758,1794.7,1794.3,1.87596119]
[1680450320343,3.8758,1794.7,1794.3,0.87596119]
[1680450322055,0.665,1794.5,1794.3,0.87596119]
[1680450322255,0.665,1794.5,1794.2,4.08376119]
[1680450323849,0.00931092,1794.4,1794.3,1.0]
[1680450324357,0.00931092,1794.4,1794.2,4.08376119]
[1680450326054,0.00931092,1794.4,1794.2,3.2078]
[1680450326454,0.00931092,1794.4,1794.3,1.0]
[1680450326854,3.8728,1794.7,1794.3,1.0]
[1680450328872,0.668,1794.9,1794.4,3.8748]
[1680450329175,0.668,1794.9,1794.5,1.0]
[1680450329773,0.668,1794.9,1794.4,3.8748]
[1680450330572,0.668,1794.7,1794.4,3.2078]
[1680450331373,0.668,1794.7,1794.3,1.0]
[1680450331577,0.668,1794.7,1794.2,4.8748]
[1680450332471,3.8758,1794.6,1794.2,3.2078]
[1680450334378,3.8758,1794.6,1794.1,2.21125907]
[1680450335679,3.8758,1794.6,1794.1,1.21125907]
[1680450336677,3.8758,1794.8,1794.3,0.668]
[1680450336981,3.8758,1794.8,1794.4,4.2078]
[1680450337282,3.2078,1794.8,1794.5,1.668]
[1680450337581,3.2078,1794.8,1794.6,1.0]
[1680450337780,0.668,1795.0,1794.6,1.0]
[1680450337980,0.668,1795.0,1794.6,4.2078]
[1680450338785,0.00542985,1794.9,1794.5,1.668]
[1680450343988,0.00542985,1794.9,1794.5,0.668]
[1680450344187,0.00542985,1794.9,1794.5,1.54396119]
[1680450344993,3.21322985,1794.9,1794.5,0.668]
[1680450345490,3.2078,1794.7,1794.4,0.87596119]
[1680450345787,3.2078,1794.7,1794.3,1.54396119]
[1680450348289,3.2078,1794.7,1794.3,2.54396119]
[1680450348793,3.2078,1794.7,1794.3,1.54396119]
[1680450349287,3.2078,1794.7,1794.3,2.54396119]
[1680450350194,3.8758,1794.7,1794.4,0.87596119]
[1680450350495,3.8758,1794.7,1794.2,4.08376119]
[1680450350686,3.8758,1794.7,1794.2,1.54396119]
[1680450351193,3.2078,1794.5,1794.2,1.54396119]
[1680450351996,0.668,1794.4,1794.2,0.87596119]
[1680450352290,3.2078,1794.3,1794.1,0.87596119]
[1680450353794,0.01086395,1794.2,1794.1,0.87596119]
[1680450354197,0.01086395,1794.2,1794.1,1.16801724]
[1680450354697,0.01086395,1794.2,1794.0,2.16801724]
[1680450354887,0.01086395,1794.2,1794.0,1.16801724]
[1680450355085,0.01086395,1794.2,1794.1,0.87427894]
[1680450355894,0.01086395,1794.2,1794.0,1.16801724]
[1680450356097,0.01086395,1794.2,1794.1,0.87427652]
[1680450356300,0.01086395,1794.2,1794.1,1.16801724]
[1680450360699,0.67886395,1794.2,1794.1,1.16801724]
[1680450360893,0.67886395,1794.2,1794.0,1.16801724]
[1680450361095,0.01086395,1794.2,1794.0,1.16801724]
[1680450361801,0.01086395,1794.2,1794.1,1.16801724]
[1680450362505,0.664,1794.4,1794.1,1.16801724]
[1680450362506,3.2078,1794.3,1794.1,1.16801724]
[1680450362803,3.2078,1794.3,1794.2,0.87513454]
[1680450364402,3.8758,1794.3,1794.2,0.87513454]
[1680450364799,3.8718,1794.3,1794.2,0.87513454]
[1680450365402,0.664,1794.3,1794.2,0.87513454]
[1680450368505,0.664,1794.3,1794.1,0.87513454]
[1680450368811,0.67486395,1794.2,1794.0,0.87513454]
[1680450369403,0.01086395,1794.2,1794.0,0.87513454]
[1680450369709,0.00744789,1794.2,1794.0,0.87513454]
[1680450371209,0.00744789,1794.2,1794.1,0.87513454]
[1680450372813,0.666,1794.6,1794.1,0.667]
[1680450373007,0.668,1794.8,1794.3,3.8758]
[1680450373205,0.668,1794.8,1794.3,4.75014156]
[1680450373402,1.664,1795.0,1794.5,3.8758]
[1680450373606,1.0,1795.0,1794.7,3.2078]
[1680450373814,3.76979725,1795.1,1794.7,3.2078]
[1680450374311,3.2078,1795.1,1794.7,3.8728]
[1680450374511,3.2078,1795.1,1794.8,0.03887607]
[1680450374707,3.2078,1795.1,1794.8,1.03887607]
[1680450375608,3.2078,1795.1,1794.8,0.03887607]
[1680450377010,3.2078,1795.1,1794.8,0.05528263]
[1680450377723,0.668,1795.0,1794.8,0.05528263]
[1680450378124,0.668,1795.0,1794.7,3.2078]
[1680450378818,1.668,1795.0,1794.7,3.2078]
[1680450379119,0.668,1794.8,1794.3,0.87434156]
[1680450379313,3.2078,1794.9,1794.3,0.87434156]
[1680450379314,0.666,1794.6,1794.3,0.87434156]
[1680450382422,3.2078,1794.5,1794.1,1.54134156]
[1680450382625,0.668,1794.2,1794.1,0.87434156]
[1680450382932,0.668,1794.2,1794.0,0.87434156]
[1680450382933,0.664,1794.2,1794.0,0.87434156]
[1680450383129,3.2078,1794.3,1794.0,0.87434156]
[1680450383130,0.668,1794.1,1794.0,0.87434156]
[1680450386629,3.8758,1794.3,1794.0,0.87434156]
[1680450386822,3.8758,1794.3,1794.1,1.0]
[1680450387428,3.2078,1794.3,1794.1,1.0]
[1680450387633,0.668,1794.5,1794.1,1.0]
[1680450387835,3.8758,1794.7,1794.2,3.8748]
[1680450388030,3.8758,1794.7,1794.3,1.0]
[1680450388230,3.8758,1794.7,1794.3,1.87434156]
[1680450392638,0.661,1794.9,1794.4,4.75014156]
[1680450392944,0.661,1794.9,1794.5,1.0]
[1680450393131,0.55687854,1795.0,1794.6,0.662]
[1680450393336,4.73127287,1795.1,1794.6,0.662]
[1680450395440,3.8728,1795.1,1794.6,0.662]
[1680450395642,3.75194516,1795.1,1794.8,0.668]
[1680450395839,3.2078,1795.1,1794.8,0.668]
[1680450396235,4.73127287,1795.3,1794.8,3.8758]
[1680450396544,3.2078,1795.3,1795.0,0.668]
[1680450396939,3.2078,1795.3,1795.1,0.07138808]
[1680450398643,3.2078,1795.3,1795.1,0.15252856]
[1680450398842,4.73227287,1795.5,1795.1,0.15252856]
[1680450399044,3.8738,1795.5,1795.1,0.15252856]
[1680450399646,3.2078,1795.5,1795.2,0.668]
[1680450400548,3.8748,1795.5,1795.1,0.73338808]
[1680450403246,1.0,1795.4,1795.1,0.73938808]
[1680450403444,0.662,1795.3,1795.1,0.07138808]
[1680450403648,0.662,1795.3,1794.9,1.0]
[1680450404153,3.8698,1795.5,1795.0,3.8758]
[1680450404354,3.2078,1795.5,1795.3,0.668]
[1680450404952,1.22223071,1795.6,1795.2,3.2078]
[1680450405256,1.22223071,1795.6,1795.3,1.0]
[1680450405559,0.666,1795.6,1795.3,1.0]
[1680450405848,3.2078,1795.7,1795.3,0.668]
[1680450406053,3.2078,1795.7,1795.3,1.668]
[1680450406643,3.2078,1795.7,1795.3,0.668]
[1680450407250,3.77336197,1795.7,1795.3,0.668]
[1680450407452,0.56556197,1795.7,1795.5,0.668]
[1680450407659,1.0,1795.8,1795.5,0.668]
[1680450407857,3.2078,1795.9,1795.5,0.668]
[1680450408647,3.2078,1795.7,1795.5,0.668]
[1680450410451,2.21078573,1796.0,1795.5,0.668]
[1680450410452,3.2078,1795.9,1795.5,0.668]
[1680450410653,3.2078,1795.9,1795.6,1.0]
[1680450411363,3.2078,1795.9,1795.7,0.662]
[1680450412163,3.2078,1795.9,1795.6,1.668]
[1680450412766,3.2078,1795.9,1795.6,0.668]
[1680450413664,3.2078,1795.9,1795.7,0.36328921]
[1680450414066,3.2078,1795.9,1795.6,0.668]
[1680450414968,3.2078,1795.9,1795.4,3.8708]
[1680450414969,3.8698,1795.9,1795.4,3.8708]
[1680450415265,3.8738,1795.7,1795.3,0.668]
[1680450416676,0.662,1795.8,1795.3,3.8758]
[1680450416861,0.662,1795.8,1795.4,1.0]
[1680450417774,0.665,1795.8,1795.4,1.0]
[1680450418372,3.2078,1795.9,1795.5,0.662]
[1680450418679,0.665,1795.8,1795.4,1.0]
[1680450418881,0.665,1795.8,1795.3,3.8758]
[1680450420773,0.665,1795.8,1795.3,0.668]
[1680450421171,0.665,1795.8,1795.3,3.8758]
[1680450421375,3.2078,1795.7,1795.3,0.668]
[1680450421871,0.665,1795.6,1795.1,4.8698]
[1680450422071,3.2078,1795.7,1795.3,0.668]
[1680450423180,0.668,1795.6,1795.1,4.8698]
[1680450423976,3.2078,1795.7,1795.3,0.663]
[1680450424177,3.8758,1795.7,1795.2,0.668]
[1680450424469,3.8758,1795.7,1795.2,0.66294431]
[1680450426975,1.21929368,1795.9,1795.3,3.2078]
[1680450427177,0.55829368,1795.9,1795.6,0.668]
[1680450427487,3.2078,1796.0,1795.6,1.668]
[1680450427880,3.2078,1796.0,1795.6,0.668]
[1680450428086,3.2078,1796.0,1795.6,1.668]
[1680450428287,3.2078,1796.0,1795.6,0.668]
[1680450428679,3.2078,1796.0,1795.7,0.3863971]
[1680450428874,3.2078,1796.0,1795.7,1.3863971]
[1680450429085,3.2078,1796.0,1795.7,0.3863971]
[1680450429487,3.77086673,1796.0,1795.7,0.3863971]
[1680450432387,3.77086673,1796.0,1795.7,1.0543971]
[1680450432691,0.56306673,1796.0,1795.7,4.2621971]
[1680450432990,3.77898593,1796.2,1795.9,0.667]
[1680450433189,4.44698593,1796.2,1795.7,4.2621971]
[1680450433890,4.44698593,1796.2,1795.9,0.668]
[1680450433891,3.77898593,1796.2,1795.9,0.668]
[1680450434086,4.44698593,1796.2,1795.8,1.0]
[1680450434287,3.77898593,1796.2,1796.0,0.663]
[1680450434587,0.57118593,1796.3,1796.0,0.663]
[1680450435893,0.57118593,1796.3,1796.1,0.662]
[1680450436193,3.77898593,1796.4,1796.1,0.662]
[1680450436893,0.57118593,1796.3,1796.1,0.662]
[1680450437092,0.57118593,1796.3,1796.0,1.0]
[1680450437287,0.57118593,1796.3,1795.9,4.8758]
[1680450437487,0.57118593,1796.3,1795.9,3.8758]
[1680450437990,0.57118593,1796.3,1796.1,0.662]
[1680450438492,3.77898593,1796.4,1796.1,0.662]
[1680450438688,0.57118593,1796.4,1796.1,3.8698]
[1680450438885,0.57118593,1796.4,1796.2,0.662]
[1680450439104,1.4296588,1796.4,1796.2,0.662]
[1680450439496,0.57118593,1796.3,1796.1,3.2078]
[1680450439997,0.57118593,1796.4,1796.1,3.2078]
[1680450441192,1.4296588,1796.4,1796.1,3.2078]
[1680450441387,0.57118593,1796.3,1796.1,3.2078]
[1680450442289,0.57118593,1796.3,1796.1,3.8758]
[1680450442791,0.57118593,1796.4,1796.1,3.8758]
[1680450443094,1.4296588,1796.5,1796.1,3.8758]
[1680450443293,0.57118593,1796.5,1796.1,3.8758]
[1680450443598,0.57118593,1796.5,1796.2,0.61948742]
[1680450443894,0.57118593,1796.5,1796.3,0.667]
[1680450444393,0.57118593,1796.5,1796.2,0.61948742]
[1680450444394,1.23918593,1796.5,1796.2,0.61948742]
[1680450444595,1.23918593,1796.5,1796.1,3.8698]
[1680450444899,0.57118593,1796.5,1796.4,0.667]
[1680450445396,0.57118593,1796.5,1796.2,1.668]
[1680450446097,0.57118593,1796.5,1796.2,0.668]
[1680450446794,0.57118593,1796.5,1796.4,0.662]
[1680450446999,0.57118593,1796.5,1796.3,1.664]
[1680450447199,0.57118593,1796.5,1796.3,0.664]
[1680450451002,0.57118593,1796.5,1796.3,3.8718]
[1680450455406,1.99828207,1796.6,1796.3,3.8718]
[1680450456202,1.99828207,1796.6,1796.4,0.664]
[1680450457299,1.1398092,1796.6,1796.4,0.664]
[1680450457904,1.1398092,1796.6,1796.4,1.664]
[1680450458204,0.57118593,1796.7,1796.5,0.668]
[1680450458806,0.57118593,1796.7,1796.6,0.71564094]
[1680450462008,0.57118593,1796.7,1796.6,1.38364094]
[1680450464010,0.57118593,1796.7,1796.6,0.71564094]
[1680450464410,1.57118593,1796.7,1796.3,0.668]
[1680450464612,0.57118593,1796.7,1796.3,0.668]
[1680450464811,1.57118593,1796.7,1796.3,0.668]
[1680450465314,0.57118593,1796.6,1796.3,0.668]
[1680450467716,0.57118593,1796.6,1796.5,0.668]
[1680450470121,0.57118593,1796.7,1796.5,0.668]
[1680450471519,0.57118593,1796.7,1796.5,3.8758]
[1680450471821,0.57118593,1796.6,1796.5,3.8758]
[1680450473615,0.57118593,1796.7,1796.5,4.66361898]
[1680450474015,0.57118593,1796.6,1796.5,4.66361898]
[1680450474713,0.85847287,1796.7,1796.5,4.66361898]
[1680450474714,1.4296588,1796.7,1796.5,4.66361898]
[1680450475215,0.57118593,1796.6,1796.5,4.66361898]
[1680450475421,1.4296588,1796.7,1796.5,4.66361898]
[1680450476016,1.4296588,1796.7,1796.5,10.22761898]
[1680450476221,1.13956586,1796.9,1796.5,10.22761898]
[1680450476222,0.57118593,1796.8,1796.6,0.668]
[1680450476522,0.57118593,1796.8,1796.7,3.8758]
[1680450480723,0.57118593,1796.9,1796.7,3.8758]
[1680450480928,0.57118593,1796.8,1796.7,3.8758]
[1680450483130,0.57118593,1796.8,1796.7,3.8708]
[1680450484823,0.57118593,1796.9,1796.7,3.8708]
[1680450485028,3.77898593,1796.9,1796.7,0.663]
[1680450485724,0.57118593,1796.9,1796.7,0.663]
[1680450485925,1.42445733,1796.9,1796.8,7.231]
[1680450486129,0.57698528,1797.1,1797.0,0.667]
[1680450486326,0.57698528,1797.2,1797.0,1.334]
[1680450486625,0.57698528,1797.2,1797.0,3.8748]
[1680450487433,0.57698528,1797.2,1797.1,1.0]
[1680450487625,0.57698528,1797.3,1797.1,1.0]
[1680450487826,0.57698528,1797.2,1797.1,1.0]
[1680450488326,0.57698528,1797.2,1797.0,4.8748]
[1680450488829,0.57698528,1797.2,1797.1,1.1028379]
[1680450489932,0.86547793,1797.3,1797.1,1.1028379]
[1680450489933,1.44246321,1797.3,1797.1,2.7678379]
[1680450490123,0.57698528,1797.3,1797.1,2.7678379]
[1680450490832,0.57698528,1797.3,1797.2,1.0]
[1680450491226,1.44246321,1797.4,1797.2,1.0]
[1680450492124,0.57698528,1797.4,1797.2,1.0]